bitfinex/quotes_BTCUSD_20220226
["timestamp","ask_amount","ask_price","bid_price","bid_amount"]
[1645844559141,0.21954686,39616.0,39614.0,0.37643]
[1645844559544,0.21954686,39616.0,39615.0,0.14824382]
[1645844560644,0.21954686,39616.0,39615.0,0.15024382]
[1645844561246,0.21954686,39616.0,39615.0,0.52667382]
[1645844561644,0.00011918,39617.0,39615.0,0.52667382]
[1645844561884,0.00011918,39617.0,39616.0,0.37643]
[1645844562488,0.2944,39625.0,39616.0,0.37643]
[1645844562688,0.2944,39625.0,39617.0,0.37643]
[1645844562886,0.2944,39625.0,39618.0,0.43370104]
[1645844563185,0.2944,39625.0,39616.0,0.43370104]
[1645844563785,0.2944,39625.0,39616.0,0.44378104]
[1645844564187,0.00039045,39622.0,39617.0,0.37643]
[1645844564887,0.2944,39625.0,39621.0,0.14824382]
[1645844565091,0.31772159,39629.0,39621.0,0.14824382]
[1645844565289,0.20352159,39629.0,39621.0,0.14824382]
[1645844566339,0.00039051,39627.0,39621.0,0.14824382]
[1645844567341,0.130423,39634.0,39621.0,0.14824382]
[1645844567541,0.180423,39634.0,39621.0,0.14824382]
[1645844567745,0.00039052,39626.0,39621.0,0.14824382]
[1645844567942,0.18065286,39633.0,39621.0,0.14824382]
[1645844568443,0.1208,39634.0,39622.0,0.81013104]
[1645844570085,0.19023655,39632.0,39628.0,0.14824382]
[1645844571085,0.19023655,39632.0,39628.0,0.14863434]
[1645844571286,0.00039046,39634.0,39628.0,0.14863434]
[1645844571491,0.00039046,39634.0,39629.0,0.81013104]
[1645844571685,0.00039046,39634.0,39629.0,0.37643]
[1645844572085,0.298,39637.0,39629.0,0.37643]
[1645844572284,0.298,39637.0,39630.0,0.00039051]
[1645844572485,0.00039046,39634.0,39630.0,0.00039051]
[1645844573333,0.1,39635.0,39631.0,0.37643]
[1645844573530,0.1,39635.0,39630.0,0.3768205]
[1645844573741,0.00039046,39634.0,39630.0,0.3768205]
[1645844573929,0.298,39637.0,39630.0,0.3768205]
[1645844574128,0.18980282,39638.0,39630.0,0.0003905]
[1645844574529,0.18980282,39638.0,39630.0,0.001]
[1645844574830,0.09539046,39635.0,39630.0,0.001]
[1645844575230,0.09539046,39635.0,39631.0,0.37643]
[1645844575434,0.09539046,39635.0,39632.0,0.14824382]
[1645844576533,0.09539046,39635.0,39632.0,0.14924382]
[1645844576785,0.09539046,39635.0,39632.0,0.14879212]
[1645844577787,0.09539046,39635.0,39632.0,0.14779212]
[1645844580387,0.09539046,39635.0,39631.0,0.0003905]
[1645844580644,0.09539046,39635.0,39625.0,0.43370104]
[1645844580645,0.09539046,39635.0,39633.0,0.14779212]
[1645844582042,0.29558424,39632.0,39631.0,0.0003905]
[1645844582443,0.29558424,39632.0,39631.0,0.3768205]
[1645844582643,0.29558424,39632.0,39631.0,0.3778205]
[1645844583042,0.29558424,39632.0,39631.0,0.37743]
[1645844583842,0.29558424,39632.0,39631.0,0.37643]
[1645844586685,0.29558424,39632.0,39631.0,0.37743]
[1645844587884,0.29558424,39632.0,39631.0,0.37643]
[1645844590039,0.29558424,39632.0,39630.0,0.00039171]
[1645844590040,0.46862196,39632.0,39630.0,0.00039171]
[1645844590241,0.46862196,39632.0,39628.0,0.37643]
[1645844590439,0.46862196,39632.0,39630.0,0.00039171]
[1645844591043,0.46862196,39632.0,39631.0,0.37643]
[1645844591641,0.46862196,39632.0,39630.0,0.00036538]
[1645844591889,0.46862196,39632.0,39631.0,0.37643]
[1645844592093,0.46862196,39632.0,39630.0,0.00036538]
[1645844592493,0.46862196,39632.0,39631.0,0.37643]
[1645844592690,0.46862196,39632.0,39631.0,0.001]
[1645844593594,0.46862196,39632.0,39631.0,0.37743]
[1645844593790,0.46862196,39632.0,39625.0,0.01008]
[1645844593991,0.46862196,39632.0,39630.0,0.00036538]
[1645844594591,0.46862196,39632.0,39630.0,0.00136538]
[1645844594990,0.46862196,39632.0,39630.0,0.001]
[1645844594991,0.29558424,39632.0,39630.0,0.001]
[1645844596036,0.29558424,39632.0,39629.0,0.00036686]
[1645844596241,0.29558424,39632.0,39627.0,0.37643]
[1645844596536,0.29558424,39632.0,39629.0,0.00136686]
[1645844597436,0.29558424,39632.0,39629.0,0.001]
[1645844597636,0.9,39631.0,39625.0,0.00629949]
[1645844597836,0.9,39631.0,39626.0,0.37643]
[1645844598636,0.9,39631.0,39626.0,0.37843]
[1645844599883,0.29558424,39632.0,39626.0,0.37643]
[1645844600083,0.29558424,39632.0,39626.0,0.38103954]
[1645844600683,0.29558424,39632.0,39626.0,0.38203954]
[1645844601885,0.29558424,39632.0,39626.0,0.38103954]
[1645844602492,0.29558424,39632.0,39628.0,0.37643]
[1645844604547,0.29558424,39632.0,39628.0,0.37743]
[1645844605949,0.29558424,39632.0,39628.0,0.37643]
[1645844606150,0.29558424,39632.0,39629.0,0.0999]
[1645844606349,0.29558424,39632.0,39630.0,0.37643]
[1645844608194,0.29558424,39632.0,39629.0,0.0999]
[1645844608394,0.29558424,39632.0,39630.0,0.37643]
[1645844608595,0.29558424,39632.0,39630.0,0.37743]
[1645844609798,0.29558424,39632.0,39629.0,0.0999]
[1645844610399,0.29558424,39632.0,39627.0,0.00039175]
[1645844610639,0.29558424,39632.0,39626.0,0.37643]
[1645844610838,0.29558424,39632.0,39625.0,0.01008]
[1645844610839,0.29558424,39632.0,39627.0,0.00039175]
[1645844611840,0.29558424,39632.0,39626.0,0.37643]
[1645844612045,0.29558424,39632.0,39627.0,0.00039175]
[1645844612843,0.72303011,39632.0,39627.0,0.00039175]
[1645844613043,0.00117525,39626.0,39622.0,0.001]
[1645844613842,0.23253673,39626.0,39619.0,0.37643]
[1645844614490,0.23253673,39626.0,39621.0,0.00039179]
[1645844615290,0.23253673,39626.0,39622.0,0.37643]
[1645844615691,0.23253673,39626.0,39622.0,0.37682178]
[1645844616092,0.23253673,39626.0,39622.0,0.00039178]
[1645844616693,0.23253673,39626.0,39619.0,0.37643]
[1645844616894,0.23253673,39626.0,39622.0,0.00039178]
[1645844617896,0.23253673,39626.0,39620.0,0.43301218]
[1645844618135,0.23253673,39626.0,39622.0,0.00039178]
[1645844618735,0.00117525,39626.0,39622.0,0.43340396]
[1645844618935,0.00117525,39626.0,39623.0,0.37643]
[1645844620337,0.00117525,39626.0,39625.0,0.37643]
[1645844620736,0.00117525,39626.0,39624.0,0.37643]
[1645844621340,0.29175949,39632.0,39624.0,0.37643]
[1645844621538,0.29175949,39632.0,39623.0,0.00039177]
[1645844622593,0.29175949,39632.0,39621.0,0.37643]
[1645844622791,0.29175949,39632.0,39626.0,0.00039175]
[1645844623793,0.29175949,39632.0,39621.0,0.64187592]
[1645844624195,0.29175949,39632.0,39627.0,0.00039174]
[1645844624993,0.29175949,39632.0,39621.0,0.64287592]
[1645844625196,0.29175949,39632.0,39627.0,0.00039175]
[1645844626238,0.29175949,39632.0,39621.0,0.64187592]
[1645844626440,0.1782968,39627.0,39621.0,0.64187592]
[1645844627641,0.1782968,39627.0,39622.0,0.00039178]
[1645844628642,0.1782968,39627.0,39622.0,0.37743]
[1645844628841,0.1782968,39627.0,39623.0,0.00039178]
[1645844629884,0.1782968,39627.0,39622.0,0.001]
[1645844630085,0.1782968,39627.0,39623.0,0.00039177]
[1645844630686,0.1782968,39627.0,39623.0,0.00139177]
[1645844631887,0.1782968,39627.0,39623.0,0.00039177]
[1645844632086,1.1,39626.0,39621.0,0.63726769]
[1645844632386,0.1782968,39627.0,39623.0,0.00039177]
[1645844633436,0.1782968,39627.0,39625.0,0.0999]
[1645844633636,0.1782968,39627.0,39621.0,0.63754177]
[1645844634637,0.1782968,39627.0,39621.0,0.63726769]
[1645844634837,0.1782968,39627.0,39621.0,0.63765948]
[1645844635738,0.43100216,39631.0,39630.0,0.8217032]
[1645844635939,0.29175949,39632.0,39630.0,0.8217032]
[1645844636144,0.00039169,39631.0,39630.0,0.8217032]
[1645844636540,0.19180767,39631.0,39630.0,0.8217032]
[1645844636989,0.62204702,39631.0,39630.0,0.8217032]
[1645844637187,0.19141598,39631.0,39630.0,0.8217032]
[1645844638090,0.62204702,39631.0,39630.0,0.8217032]
[1645844638286,0.19141598,39631.0,39630.0,0.8217032]
[1645844640290,0.62204702,39631.0,39630.0,0.8217032]
[1645844640541,0.19141598,39631.0,39630.0,0.8217032]
[1645844640745,0.62204702,39631.0,39630.0,0.8217032]
[1645844641944,0.19141598,39631.0,39630.0,0.8217032]
[1645844643146,0.19141598,39631.0,39630.0,0.25274519]
[1645844659998,0.62557462,39631.0,39630.0,0.25274519]
[1645844660399,0.83777747,39631.0,39630.0,0.25274519]
[1645844661001,0.62557462,39631.0,39630.0,0.25274519]
[1645844661609,1.35,39630.0,39621.0,0.00039181]
[1645844661803,0.2122582,39627.0,39621.0,0.00039181]
[1645844662003,0.6973726,39626.0,39621.0,0.00039181]
[1645844662202,0.4851144,39626.0,39619.0,0.01009]
[1645844662802,0.1985836,39625.0,39619.0,0.01009]
[1645844663046,0.0506,39624.0,39619.0,0.01009]
[1645844665048,0.4851144,39624.0,39619.0,0.01009]
[1645844665648,0.0506,39624.0,39619.0,0.01009]
[1645844665848,0.52284391,39624.0,39619.0,0.01009]
[1645844666049,0.52284391,39624.0,39620.0,0.00039151]
[1645844666251,0.08832951,39624.0,39620.0,0.00039151]
[1645844666907,0.09032951,39624.0,39620.0,0.00039151]
[1645844667103,0.09032951,39624.0,39619.0,0.01009]
[1645844668102,0.08832951,39624.0,39619.0,0.01009]
[1645844668302,0.03772951,39624.0,39619.0,0.01009]
[1645844670845,0.03772951,39624.0,39620.0,0.00039122]
[1645844670846,0.03872951,39624.0,39620.0,0.00039122]
[1645844671248,0.001,39624.0,39620.0,0.00039122]
[1645844671846,0.001,39624.0,39619.0,0.01009]
[1645844672049,0.08,39624.0,39620.0,0.00039122]
[1645844672847,0.5145144,39624.0,39620.0,0.00039122]
[1645844673048,0.08,39617.0,39613.0,0.25070954]
[1645844673249,0.08,39617.0,39613.0,0.00460954]
[1645844673448,0.08,39617.0,39613.0,0.00617471]
[1645844674396,0.08,39617.0,39613.0,0.00039127]
[1645844675000,0.02135365,39618.0,39610.0,0.37311677]
[1645844675001,0.08,39615.0,39610.0,0.37311677]
[1645844675202,1.15,39616.0,39607.0,0.00156531]
[1645844675203,0.15,39610.0,39607.0,0.00156531]
[1645844675401,0.08,39607.0,39593.0,0.1998]
[1645844675604,0.08,39607.0,39591.0,0.002]
[1645844675605,0.08,39603.0,39591.0,0.002]
[1645844675799,0.08,39601.0,39591.0,0.002]
[1645844676100,0.08,39599.0,39591.0,0.002]
[1645844676297,0.5246044,39598.0,39590.0,0.05252037]
[1645844676498,0.21836399,39595.0,39590.0,0.00252037]
[1645844676697,0.08,39594.0,39590.0,0.00252037]
[1645844678245,0.51744164,39594.0,39588.0,0.00152037]
[1645844678444,0.56804164,39594.0,39588.0,0.00152037]
[1645844679244,0.56804164,39594.0,39589.0,0.00039113]
[1645844679650,0.08,39592.0,39587.0,0.001]
[1645844679847,1.15,39593.0,39587.0,0.001]
[1645844679848,0.08,39590.0,39587.0,0.001]
[1645844680045,0.08,39588.0,39587.0,0.001]
[1645844680247,0.08,39588.0,39578.0,0.003]
[1645844680248,0.56804164,39588.0,39578.0,0.003]
[1645844680448,0.27206656,39587.0,39578.0,0.003]
[1645844680647,0.08,39585.0,39578.0,0.003]
[1645844680848,0.56804164,39585.0,39581.0,0.0021]
[1645844681148,0.56804164,39585.0,39584.0,0.0021]
[1645844681348,1.40173428,39585.0,39584.0,0.0021]
[1645844681549,1.78374474,39585.0,39584.0,0.0021]
[1645844682396,0.9500521,39585.0,39584.0,0.0021]
[1645844682797,0.08,39581.0,39579.0,0.002]
[1645844682998,0.08,39579.0,39578.0,0.001]
[1645844683199,0.4317256,39579.0,39578.0,0.001]
[1645844684500,0.91976724,39579.0,39578.0,0.001]
[1645844685002,0.08,39578.0,39574.0,0.001]
[1645844685199,0.08,39576.0,39574.0,0.001]
[1645844685400,0.56804164,39576.0,39574.0,0.001]
[1645844685647,0.1306,39576.0,39574.0,0.001]
[1645844685846,0.56804164,39576.0,39574.0,0.001]
[1645844686045,0.1306,39576.0,39574.0,0.001]
[1645844686647,0.56804164,39576.0,39574.0,0.001]
[1645844686845,0.56904164,39576.0,39574.0,0.001]
[1645844687646,0.60634122,39576.0,39574.0,0.001]
[1645844687846,0.16889958,39576.0,39574.0,0.001]
[1645844688048,0.16789958,39576.0,39574.0,0.001]
[1645844688250,0.08,39572.0,39571.0,0.009]
[1645844688450,1.43,39571.0,39570.0,0.0011]
[1645844688648,2.3634321,39571.0,39570.0,0.0011]
[1645844688847,0.08,39569.0,39568.0,0.00248947]
[1645844689048,0.56804164,39569.0,39568.0,0.00248947]
[1645844689305,1.23,39567.0,39555.0,0.051]
[1645844689504,1.23,39567.0,39552.0,0.100684]
[1645844689505,0.56804164,39566.0,39552.0,0.100684]
[1645844689804,0.08,39561.0,39552.0,0.000784]
[1645844690003,0.08,39559.0,39552.0,0.000784]
[1645844690202,0.36462523,39558.0,39552.0,0.000784]
[1645844690401,0.35962523,39558.0,39552.0,0.000784]
[1645844691702,0.35962523,39558.0,39555.0,0.00460954]
[1645844691904,0.1256,39558.0,39556.0,0.37643]
[1645844692102,0.1256,39558.0,39557.0,0.00460954]
[1645844692103,0.075,39558.0,39557.0,0.00460954]
[1645844692904,0.2847052,39558.0,39557.0,0.00760954]
[1645844693147,0.075,39558.0,39557.0,0.00760954]
[1645844694145,0.075,39558.0,39557.0,0.00460954]
[1645844694546,0.30210191,39564.0,39557.0,0.40624954]
[1645844694747,0.30210191,39564.0,39563.0,0.00460954]
[1645844694956,0.30210191,39564.0,39563.0,0.38103954]
[1645844696146,0.30210191,39564.0,39563.0,0.00460954]
[1645844698798,0.30210191,39564.0,39563.0,0.00560954]
[1645844700107,0.30210191,39564.0,39563.0,0.00460954]
[1645844700940,0.30210191,39564.0,39563.0,0.00560954]
[1645844702238,0.30210191,39564.0,39563.0,0.00460954]
[1645844702839,0.21894498,39564.0,39563.0,0.00660954]
[1645844704294,0.21894498,39564.0,39563.0,0.00460954]
[1645844704896,0.21894498,39564.0,39563.0,0.00660954]
[1645844708247,0.21894498,39564.0,39563.0,0.00460954]
[1645844709045,0.21894498,39564.0,39563.0,0.00710954]
[1645844709246,0.21334657,39569.0,39563.0,0.00710954]
[1645844709446,0.00038658,39566.0,39563.0,0.003]
[1645844709847,0.00038658,39566.0,39565.0,0.00410954]
[1645844710246,0.21334657,39569.0,39565.0,0.00410954]
[1645844710648,0.00038657,39567.0,39565.0,0.00410954]
[1645844711648,0.21534657,39569.0,39565.0,0.00410954]
[1645844711898,0.00038657,39568.0,39565.0,0.00410954]
[1645844712196,0.00038657,39568.0,39562.0,0.00038662]
[1645844712396,0.00038657,39568.0,39565.0,0.00410954]
[1645844712798,0.43219402,39568.0,39565.0,0.00410954]
[1645844713003,0.00138656,39568.0,39565.0,0.00410954]
[1645844713201,0.43358058,39568.0,39565.0,0.00410954]
[1645844713799,0.43358058,39568.0,39564.0,0.00410954]
[1645844713998,0.001,39568.0,39562.0,0.00410954]
[1645844714297,0.43258058,39568.0,39562.0,0.00449617]
[1645844714498,0.00038656,39568.0,39562.0,0.00038663]
[1645844714702,0.00077326,39561.0,39554.0,0.05]
[1645844714903,0.43296728,39561.0,39554.0,0.05]
[1645844715102,0.43296728,39561.0,39552.0,0.095284]
[1645844715300,0.43296728,39561.0,39552.0,0.000784]
[1645844715752,0.2070742,39553.0,39552.0,0.000784]
[1645844716349,0.74926728,39561.0,39552.0,0.000784]
[1645844716350,0.23090624,39555.0,39552.0,0.000784]
[1645844716553,0.22999944,39555.0,39552.0,0.000784]
[1645844718655,0.43219402,39554.0,39552.0,0.000784]
[1645844718856,0.28159944,39555.0,39552.0,0.00054108]
[1645844719056,0.23099944,39555.0,39552.0,0.00092777]
[1645844719891,0.23099944,39555.0,39552.0,0.00054108]
[1645844720091,0.22999944,39555.0,39552.0,0.00092777]
[1645844720493,0.22999944,39555.0,39548.0,0.00410954]
[1645844720494,0.23260627,39549.0,39548.0,0.00203731]
[1645844721595,0.66613379,39549.0,39539.0,0.0945]
[1645844721797,1.15,39548.0,39543.0,3.731e-05]
[1645844721997,0.43352752,39547.0,39543.0,3.731e-05]
[1645844722598,1.15,39548.0,39543.0,3.731e-05]
[1645844722795,1.2006,39548.0,39543.0,3.731e-05]
[1645844723050,0.001,39547.0,39543.0,3.731e-05]
[1645844723849,0.001,39547.0,39543.0,0.00042256]
[1645844724250,1.58352752,39548.0,39543.0,0.00042256]
[1645844724449,1.15,39547.0,39541.0,0.04084497]
[1645844724649,0.43352752,39546.0,39541.0,0.04084497]
[1645844725049,0.17094159,39542.0,39541.0,0.04084497]
[1645844728903,0.17194159,39542.0,39541.0,0.03584497]
[1645844730850,0.17094159,39542.0,39541.0,0.03584497]
[1645844733154,0.20592326,39542.0,39541.0,0.03584497]
[1645844733560,0.001,39547.0,39541.0,0.03584497]
[1645844733859,0.001,39547.0,39546.0,0.1]
[1645844734056,0.00083444,39547.0,39546.0,1.68410237]
[1645844734299,0.6758,39569.0,39547.0,1.17134]
[1645844734499,0.6758,39569.0,39553.0,0.1]
[1645844734500,0.21397152,39562.0,39553.0,0.1]
[1645844734701,0.00011277,39556.0,39552.0,0.0506]
[1645844734901,0.00011277,39556.0,39550.0,0.0506]
[1645844735098,0.00011277,39556.0,39553.0,0.1]
[1645844735599,0.21397152,39562.0,39554.0,0.37643]
[1645844735797,0.00011279,39556.0,39553.0,0.1]
[1645844736205,0.00011279,39556.0,39554.0,0.37643]
[1645844736397,0.00011279,39556.0,39555.0,0.37643]
[1645844736600,0.00011279,39556.0,39553.0,0.1]
[1645844736796,0.21397152,39562.0,39553.0,0.1]
[1645844737198,0.00037578,39557.0,39552.0,0.1]
[1645844738043,0.21397152,39562.0,39552.0,0.1]
[1645844738445,0.00037578,39556.0,39552.0,0.1]
[1645844739247,0.21497152,39562.0,39552.0,0.1]
[1645844739447,0.0003333,39556.0,39552.0,0.1]
[1645844740348,0.21397152,39562.0,39552.0,0.1]
[1645844740751,0.0003333,39556.0,39552.0,0.1]
[1645844741249,0.0003333,39556.0,39547.0,0.3018]
[1645844741894,0.00033328,39556.0,39547.0,0.3018]
[1645844742594,0.17445587,39555.0,39547.0,0.3018]
[1645844744195,0.17445587,39555.0,39544.0,0.05]
[1645844747043,0.17545587,39555.0,39544.0,0.05]
[1645844748145,0.17445587,39555.0,39544.0,0.05]
[1645844748743,0.22412666,39549.0,39544.0,0.05]
[1645844748944,0.22412666,39549.0,39541.0,0.03618931]
[1645844750000,0.22412666,39549.0,39541.0,0.03584497]
[1645844750200,0.22412666,39549.0,39541.0,0.03618354]
[1645844751002,0.001,39549.0,39541.0,0.03618354]
[1645844751201,0.001,39549.0,39541.0,0.03584497]
[1645844751401,0.001,39549.0,39541.0,0.03618354]
[1645844751600,0.001,39549.0,39538.0,0.001]
[1645844751601,0.001,39549.0,39537.0,0.55809902]
[1645844752202,0.20808358,39550.0,39538.0,0.39990473]
[1645844752501,0.20808358,39550.0,39537.0,0.07016088]
[1645844752502,0.20808358,39550.0,39537.0,0.44339902]
[1645844752702,0.20808358,39550.0,39538.0,0.39990886]
[1645844753148,0.43362052,39555.0,39538.0,0.39990886]
[1645844753347,0.43362052,39555.0,39537.0,0.07016088]
[1645844753750,0.43362052,39555.0,39536.0,0.001]
[1645844753951,0.00010196,39550.0,39536.0,0.001]
[1645844754349,0.00010196,39550.0,39537.0,0.37643]
[1645844754950,0.19234328,39552.0,39536.0,0.001]
[1645844755152,0.00010196,39550.0,39536.0,0.001]
[1645844755349,0.00010196,39550.0,39537.0,0.37643]
[1645844755753,0.00010196,39550.0,39536.0,0.001]
[1645844756151,0.19234328,39552.0,39536.0,0.001]
[1645844756351,0.00033985,39550.0,39539.0,0.00036484]
[1645844757104,0.00033985,39550.0,39548.0,0.07]
[1645844757301,0.19234328,39552.0,39536.0,0.1138]
[1645844757502,0.0003658,39550.0,39539.0,0.00037263]
[1645844757699,0.0003658,39550.0,39544.0,0.0699]
[1645844758503,0.19234328,39552.0,39544.0,0.0699]
[1645844758704,0.00036583,39550.0,39544.0,0.0699]
[1645844759104,0.00136583,39550.0,39539.0,0.00037264]
[1645844759707,0.001,39550.0,39536.0,0.1138]
[1645844759903,0.001,39550.0,39539.0,0.00037263]
[1645844759904,0.0013658,39550.0,39539.0,0.00037263]
[1645844760305,0.0003658,39550.0,39539.0,0.00037263]
[1645844760948,0.85202052,39557.0,39536.0,0.54043461]
[1645844761148,0.00033697,39550.0,39539.0,0.00035675]
[1645844761753,0.00033697,39550.0,39540.0,0.37643]
[1645844761952,0.00033697,39550.0,39542.0,0.02521]
[1645844762153,0.8512871,39568.0,39542.0,0.02521]
[1645844762154,0.56662052,39564.0,39544.0,0.79491]
[1645844762357,0.56662052,39564.0,39544.0,0.84551]
[1645844762551,0.00033697,39550.0,39545.0,0.37643]
[1645844762753,0.00033697,39550.0,39546.0,0.0506]
[1645844762952,0.00033697,39550.0,39547.0,0.37643]
[1645844763452,0.17807607,39560.0,39546.0,0.0506]
[1645844763651,0.00010138,39550.0,39547.0,0.37643]
[1645844764497,0.17807607,39560.0,39549.0,0.37643]
[1645844764699,0.17807607,39560.0,39546.0,0.8203]
[1645844764900,0.00034116,39550.0,39547.0,0.37643]
[1645844765097,0.00034116,39550.0,39549.0,0.001]
[1645844765295,0.00034116,39550.0,39549.0,0.37743]
[1645844765498,0.00034116,39550.0,39549.0,0.40264]
[1645844765701,0.001,39565.0,39549.0,0.42803]
[1645844765898,0.001,39565.0,39549.0,0.0516]
[1645844766099,0.00034116,39551.0,39550.0,0.43362052]
[1645844766298,0.00034116,39551.0,39550.0,0.86065052]
[1645844766899,0.16827395,39563.0,39550.0,0.48422052]
[1645844767097,0.16827395,39563.0,39550.0,0.48822052]
[1645844767297,0.16827395,39563.0,39551.0,0.37643]
[1645844767298,0.00034115,39552.0,39551.0,0.37643]
[1645844767503,0.00034115,39552.0,39551.0,0.81005052]
[1645844768157,0.18980567,39557.0,39551.0,0.81005052]
[1645844768555,0.00034135,39553.0,39551.0,0.81005052]
[1645844768756,0.00034135,39553.0,39552.0,0.43362052]
[1645844768954,0.00034135,39553.0,39552.0,0.81005052]
[1645844769253,0.00034135,39553.0,39552.0,0.43362052]
[1645844769454,0.3276,39567.0,39552.0,0.86065052]
[1645844769656,0.3276,39567.0,39553.0,0.37643]
[1645844769657,0.00034135,39554.0,39553.0,0.37643]
[1645844769856,0.00034135,39554.0,39553.0,0.86065052]
[1645844770058,0.00034135,39554.0,39553.0,0.88586052]
[1645844770458,0.1153,39569.0,39553.0,0.88586052]
[1645844770655,0.1896906,39565.0,39553.0,0.50943052]
[1645844770856,0.00034135,39555.0,39554.0,0.37643]
[1645844771055,0.00034135,39555.0,39554.0,0.86065052]
[1645844771459,0.00034135,39555.0,39554.0,0.88586052]
[1645844771658,0.1153,39569.0,39554.0,0.88586052]
[1645844771901,0.2341,39570.0,39554.0,0.50943052]
[1645844772099,0.00034133,39556.0,39554.0,0.50943052]
[1645844772303,0.00034133,39556.0,39555.0,0.43362052]
[1645844772499,0.00034133,39556.0,39555.0,0.48422052]
[1645844772901,0.17994833,39567.0,39555.0,0.48422052]
[1645844773401,0.00034133,39557.0,39555.0,0.48422052]
[1645844773601,0.00034133,39557.0,39555.0,0.0506]
[1645844773800,0.00034133,39557.0,39556.0,0.43362052]
[1645844774000,0.00034133,39557.0,39556.0,0.48422052]
[1645844774201,0.17994833,39567.0,39556.0,0.0506]
[1645844774501,0.17994833,39567.0,39557.0,0.43362052]
[1645844774502,0.00034133,39558.0,39557.0,0.43362052]
[1645844774800,0.00034133,39558.0,39556.0,0.0506]
[1645844775403,0.17994833,39567.0,39556.0,0.0506]
[1645844775650,0.00034133,39559.0,39556.0,0.0506]
[1645844776050,0.00023583,39559.0,39556.0,0.0506]
[1645844776251,0.00023583,39559.0,39557.0,0.43362052]
[1645844776550,0.17994833,39567.0,39557.0,0.43362052]
[1645844777652,0.17994833,39567.0,39552.0,0.43662052]
[1645844777853,0.2341,39570.0,39553.0,0.02521]
[1645844778158,0.2341,39570.0,39553.0,0.07581]
[1645844778353,0.2341,39570.0,39554.0,0.43362052]
[1645844779056,0.18637062,39569.0,39554.0,0.43662052]
[1645844779300,0.00038414,39564.0,39554.0,0.43662052]
[1645844779601,0.23517716,39563.0,39554.0,0.43662052]
[1645844779800,0.23517716,39563.0,39554.0,0.003]
[1645844780198,0.2341,39570.0,39554.0,0.003]
[1645844780398,0.2341,39570.0,39551.0,0.02521]
[1645844780399,0.00038416,39560.0,39551.0,0.02521]
[1645844780598,0.00038416,39560.0,39550.0,0.43362052]
[1645844781200,0.00038416,39560.0,39551.0,0.37643]
[1645844781400,0.19229268,39564.0,39553.0,0.37643]
[1645844781602,0.00038418,39557.0,39554.0,0.43362052]
[1645844781800,0.00038418,39557.0,39555.0,0.37643]
[1645844781999,8.625e-05,39555.0,39551.0,0.43362052]
[1645844782200,8.625e-05,39555.0,39551.0,0.48422052]
[1645844782602,8.625e-05,39555.0,39552.0,0.37643]
[1645844782802,8.625e-05,39555.0,39553.0,0.43362052]
[1645844783647,8.625e-05,39555.0,39554.0,0.37643]
[1645844784248,8.625e-05,39555.0,39550.0,0.37643]
[1645844784948,8.625e-05,39555.0,39552.0,0.37643]
[1645844785151,8.625e-05,39555.0,39554.0,0.37643]
[1645844787201,8.625e-05,39555.0,39554.0,0.38243]
[1645844788202,8.625e-05,39555.0,39554.0,0.006]
[1645844788402,8.625e-05,39555.0,39549.0,0.0101]
[1645844788606,8.625e-05,39555.0,39550.0,0.37643]
[1645844788801,8.625e-05,39555.0,39550.0,0.3759772]
[1645844790205,8.625e-05,39555.0,39549.0,0.0151]
[1645844790405,8.625e-05,39555.0,39549.0,0.0101]
[1645844791156,8.625e-05,39555.0,39549.0,0.0131]
[1645844791753,8.625e-05,39555.0,39550.0,0.376921]
[1645844791952,8.625e-05,39555.0,39549.0,0.0131]
[1645844792956,8.625e-05,39555.0,39549.0,0.0101]
[1645844793760,8.625e-05,39555.0,39553.0,0.0699]
[1645844794399,8.625e-05,39555.0,39549.0,0.0101]
[1645844797503,0.21972534,39554.0,39549.0,0.0101]
[1645844797704,0.43362052,39553.0,39548.0,0.1194]
[1645844797905,0.43362052,39553.0,39546.0,0.0006]
[1645844798152,0.21972534,39554.0,39546.0,0.0006]
[1645844798750,8.625e-05,39555.0,39546.0,0.0006]
[1645844798751,0.22100119,39548.0,39546.0,0.0006]
[1645844801154,0.22200119,39548.0,39546.0,0.0006]
[1645844802404,0.22100119,39548.0,39546.0,0.0006]
[1645844803206,0.22200119,39548.0,39546.0,0.0006]
[1645844804406,0.22100119,39548.0,39546.0,0.0006]
[1645844805107,0.22300119,39548.0,39546.0,0.0006]
[1645844805412,0.002,39548.0,39546.0,0.0006]
[1645844806457,8.625e-05,39555.0,39546.0,0.0006]
[1645844806659,0.19749872,39554.0,39546.0,0.0006]
[1645844807256,0.24749872,39554.0,39546.0,0.0016]
[1645844807457,0.24749872,39554.0,39546.0,0.0011469]
[1645844808358,0.24749872,39554.0,39546.0,0.0001469]
[1645844808559,0.24561872,39554.0,39546.0,0.0001469]
[1645844809057,0.43362052,39553.0,39546.0,0.0001469]
[1645844809298,0.24561872,39554.0,39546.0,0.0001469]
[1645844809299,0.24661872,39554.0,39546.0,0.0001469]
[1645844809699,0.24661872,39554.0,39545.0,0.0003869]
[1645844810498,0.24561872,39554.0,39545.0,0.0003869]
[1645844811199,0.24561872,39554.0,39545.0,0.0013869]
[1645844811600,0.7,39553.0,39542.0,0.0463869]
[1645844811799,0.24561872,39554.0,39541.0,0.0101]
[1645844812802,0.24561872,39554.0,39543.0,0.00038458]
[1645844813047,0.43362052,39553.0,39543.0,0.00038458]
[1645844813449,0.24561872,39554.0,39543.0,0.00038458]
[1645844813851,0.24561872,39554.0,39541.0,0.0101]
[1645844814149,0.24561872,39554.0,39543.0,0.00038459]
[1645844814949,0.4,39553.0,39541.0,0.00548459]
[1645844815150,0.4,39553.0,39543.0,0.00038459]
[1645844816250,0.4,39553.0,39541.0,0.00548459]
[1645844816449,0.00012137,39550.0,39541.0,0.00548459]
[1645844816650,0.00012137,39550.0,39542.0,0.376921]
[1645844817408,0.24561872,39554.0,39542.0,0.376921]
[1645844817609,0.00038453,39548.0,39541.0,0.00586918]
[1645844817808,0.00038453,39548.0,39542.0,0.376921]
[1645844818714,8.625e-05,39555.0,39543.0,0.0506]
[1645844818910,0.00038453,39547.0,39544.0,0.376921]
[1645844819110,0.00038453,39547.0,39545.0,0.0506]
[1645844819310,0.00038453,39547.0,39546.0,0.376921]
[1645844819510,0.00038453,39547.0,39546.0,0.427521]
[1645844819910,8.625e-05,39555.0,39546.0,0.427521]
[1645844820111,0.00038452,39548.0,39546.0,0.422521]
[1645844821053,8.625e-05,39555.0,39546.0,0.422521]